bitfinex/quotes_BTCUSD_20250523
["timestamp","ask_amount","ask_price","bid_price","bid_amount"]
[1747971865684,0.21915519,111080.0,111070.0,5.19850295]
[1747971865805,0.22015519,111080.0,111070.0,5.20750611]
[1747971867248,0.23915519,111080.0,111070.0,5.19850295]
[1747971867451,0.23915519,111080.0,111070.0,5.21650936]
[1747971867663,0.23915519,111080.0,111070.0,5.60498936]
[1747971871274,0.23915519,111080.0,111070.0,5.61399244]
[1747971871473,0.05910478,111080.0,111070.0,5.62299536]
[1747971871688,0.23915519,111080.0,111070.0,5.5959862]
[1747971871900,0.23015284,111080.0,111070.0,5.5959862]
[1747971872306,0.23015284,111080.0,111070.0,5.60498936]
[1747971873679,0.23015284,111080.0,111070.0,5.63198736]
[1747971874377,0.23015284,111080.0,111070.0,5.64099028]
[1747971874585,0.23015284,111080.0,111070.0,5.64099044]
[1747971875781,0.23015284,111080.0,111070.0,5.64999336]
[1747971875985,0.05910462,111080.0,111070.0,5.64999287]
[1747971876211,0.0221,111080.0,111070.0,5.73953794]
[1747971876414,0.04010398,111080.0,111070.0,5.73953794]
[1747971876648,0.06820625,111080.0,111070.0,5.73953794]
[1747971877188,0.0772086,111080.0,111070.0,5.73953794]
[1747971879271,0.06820625,111080.0,111070.0,5.73953794]
[1747971879467,0.0772086,111080.0,111070.0,5.73953794]
[1747971879916,0.08621103,111080.0,111070.0,5.73953794]
[1747971882323,0.08621168,111080.0,111070.0,5.73953794]
[1747971883160,0.08621168,111080.0,111070.0,5.73893794]
[1747971884720,0.26626209,111080.0,111070.0,4.88873656]
[1747971885062,0.23925536,111080.0,111070.0,5.154511]
[1747971885216,0.23925536,111080.0,111070.0,5.61338087]
[1747971885985,0.23025293,111080.0,111070.0,5.424311]
[1747971886434,0.23025293,111080.0,111070.0,5.397313]
[1747971888113,0.23025293,111080.0,111070.0,2.8925]
[1747971888819,0.23025293,111080.0,111070.0,2.26738]
[1747971889129,0.23025293,111080.0,111070.0,2.8925]
[1747971891826,0.23025293,111080.0,111070.0,2.26738]
[1747971892026,0.23025293,111080.0,111070.0,2.8925]
[1747971893205,0.27148174,111080.0,111070.0,0.7438]
[1747971893408,0.39195182,111080.0,111070.0,0.7438]
[1747971893609,0.39195182,111080.0,111070.0,1.0136]
[1747971894681,0.31979849,111080.0,111070.0,1.0136]
[1747971895439,0.38979849,111080.0,111070.0,1.0136]
[1747971896563,0.38979849,111080.0,111070.0,1.01364]
[1747971896963,0.38979849,111080.0,111070.0,0.74384]
[1747971897146,0.38979849,111080.0,111070.0,1.01364]
[1747971905808,0.38979849,111080.0,111070.0,0.74384]
[1747971906010,0.38979849,111080.0,111070.0,1.01368]
[1747971907112,0.38979849,111080.0,111070.0,0.74384]
[1747971907297,0.38979849,111080.0,111070.0,1.01368]
[1747971908904,0.23659053,111060.0,111050.0,0.01077868]
[1747971909102,0.23659053,111060.0,111050.0,4.7497826]
[1747971909644,0.23659053,111060.0,111050.0,4.73900392]
[1747971910146,0.23659053,111060.0,111050.0,4.75083092]
[1747971912009,0.23659053,111060.0,111050.0,4.75183092]
[1747971914713,0.23659053,111060.0,111050.0,4.7626096]
[1747971918411,0.23659053,111060.0,111050.0,5.1026096]
[1747971920563,0.23659053,111060.0,111050.0,4.8327696]
[1747971920797,0.23659053,111060.0,111050.0,2.0048425]
[1747971921003,0.23659053,111060.0,111050.0,1.8461425]
[1747971922138,0.23659053,111060.0,111050.0,1.8461825]
[1747971922804,0.23659053,111060.0,111050.0,1.5061825]
[1747971926016,0.23659053,111060.0,111050.0,1.49181092]
[1747971928074,0.23659053,111060.0,111050.0,1.22193092]
[1747971928282,0.23659053,111060.0,111050.0,1.49181092]
[1747971932237,0.23659053,111060.0,111050.0,1.22193092]
[1747971932459,0.23659053,111060.0,111050.0,1.49181092]
[1747971933687,0.23659053,111060.0,111050.0,1.20665092]
[1747971933845,0.23659053,111060.0,111050.0,1.83169092]
[1747971935058,0.23659053,111060.0,111050.0,0.93141092]
[1747971935321,0.23659053,111060.0,111050.0,1.09559092]
[1747971935658,0.23659053,111060.0,111050.0,0.96709092]
[1747971940557,0.32613609,111060.0,111050.0,0.35721092]
[1747971940759,0.32613609,111060.0,111050.0,0.62709092]
[1747971941934,0.32613609,111060.0,111050.0,0.35721092]
[1747971942244,0.32613609,111060.0,111050.0,0.62709092]
[1747971944033,0.32613609,111060.0,111050.0,0.35721092]
[1747971944454,0.32613609,111060.0,111050.0,0.62709092]
[1747971944841,0.37738162,111060.0,111050.0,0.62709092]
[1747971945253,0.32613609,111060.0,111050.0,0.62709092]
[1747971945898,0.32613609,111060.0,111050.0,0.35721092]
[1747971946057,0.32613609,111060.0,111050.0,0.35621092]
[1747971946257,0.32713609,111060.0,111050.0,0.35621092]
[1747971946601,0.32713609,111060.0,111050.0,0.35521092]
[1747971948481,0.32713609,111060.0,111050.0,5.092e-05]
[1747971952094,0.46322619,111060.0,111050.0,5.092e-05]
[1747971952749,0.59705609,111060.0,111050.0,5.092e-05]
[1747971952924,0.73314619,111060.0,111050.0,5.092e-05]
[1747971953449,0.73938511,111060.0,111050.0,5.092e-05]
[1747971953660,0.82890662,111060.0,111050.0,5.092e-05]
[1747971954349,0.69281652,111060.0,111050.0,5.092e-05]
[1747971955287,0.82890662,111060.0,111050.0,5.092e-05]
[1747971958107,0.69281652,111060.0,111050.0,5.092e-05]
[1747971958334,0.89890662,111060.0,111050.0,5.092e-05]
[1747971961736,0.76281652,111060.0,111050.0,5.092e-05]
[1747971964966,0.67329501,111060.0,111050.0,5.092e-05]
[1747971972696,0.40337501,111060.0,111050.0,5.092e-05]
[1747971975213,1.08937501,111060.0,111050.0,5.092e-05]
[1747971992964,1.42937501,111060.0,111050.0,5.092e-05]
[1747971994440,1.08937501,111060.0,111050.0,5.092e-05]
[1747971995531,1.17889652,111060.0,111050.0,5.092e-05]
[1747972000651,1.08937501,111060.0,111050.0,5.092e-05]
[1747972004384,1.42937501,111060.0,111050.0,5.092e-05]
[1747972006558,1.08937501,111060.0,111050.0,5.092e-05]
[1747972006761,1.07037501,111060.0,111050.0,5.092e-05]
[1747972006959,1.07097501,111060.0,111050.0,5.092e-05]
[1747972007364,1.09117501,111060.0,111050.0,5.092e-05]
[1747972011274,0.20716856,111020.0,111010.0,0.57248704]
[1747972011479,0.20716856,111020.0,111010.0,5.40983355]
[1747972011716,0.19816191,111020.0,111010.0,5.40983355]
[1747972012561,0.19816191,111020.0,111010.0,5.6802635]
[1747972012980,0.19916191,111020.0,111010.0,5.6912635]
[1747972013382,0.19916191,111020.0,111010.0,5.6624874]
[1747972013629,0.19015502,111020.0,111010.0,5.6624874]
[1747972013827,0.18114772,111020.0,111010.0,5.47331755]
[1747972014253,0.18114772,111020.0,111010.0,5.47941755]
[1747972015403,0.18114772,111020.0,111010.0,5.47040936]
[1747972016559,0.18114772,111020.0,111010.0,5.47941755]
[1747972017743,0.18114772,111020.0,111010.0,5.47040936]
[1747972017987,0.18114772,111020.0,111010.0,5.47941755]
[1747972018182,0.18114772,111020.0,111010.0,4.85441755]
[1747972018400,0.18114772,111020.0,111010.0,5.65958149]
[1747972018812,0.18114772,111020.0,111010.0,5.47040936]
[1747972020985,0.18114772,111020.0,111010.0,5.18590851]
[1747972021221,0.18114772,111020.0,111010.0,5.45582851]
[1747972023120,0.18114772,111020.0,111010.0,5.4648367]
[1747972023328,0.18114772,111020.0,111010.0,5.45582851]
[1747972035134,0.18114772,111020.0,111010.0,5.84450851]
[1747972035337,0.18114772,111020.0,111010.0,5.8535167]
[1747972035759,0.18114772,111020.0,111010.0,5.84450851]
[1747972036993,0.18114772,111020.0,111010.0,5.83840851]
[1747972038091,0.18114772,111020.0,111010.0,5.56848851]
[1747972038353,0.18114772,111020.0,111010.0,5.83840851]
[1747972039149,0.18114772,111020.0,111010.0,5.21344851]
[1747972039326,0.18114772,111020.0,111010.0,5.84160851]
[1747972044202,0.20014772,111020.0,111010.0,5.84160851]
[1747972048587,0.21944772,111020.0,111010.0,5.84160851]
[1747972055664,0.21944772,111020.0,111010.0,5.3613121]
[1747972055813,0.21944772,111020.0,111010.0,5.50160851]
[1747972058679,0.21944772,111020.0,111010.0,5.84160851]
[1747972060643,0.21944772,111020.0,111010.0,5.48214295]
[1747972060796,0.21944772,111020.0,111010.0,5.75206295]
[1747972071098,0.21944772,111020.0,111010.0,5.74706295]
[1747972071431,0.21844772,111020.0,111010.0,5.74506295]
[1747972071617,0.21944772,111020.0,111010.0,5.74906295]
[1747972072430,0.21944772,111020.0,111010.0,5.75807114]
[1747972073005,0.21944772,111020.0,111010.0,5.76707925]
[1747972075118,0.23746224,111020.0,111010.0,5.95625106]
[1747972075327,0.23746224,111020.0,111010.0,5.94724319]
[1747972077536,0.23746224,111020.0,111010.0,5.95625122]
[1747972078343,0.23746224,111020.0,111010.0,5.94724319]
[1747972080855,0.23746224,111020.0,111010.0,5.74906295]
[1747972081062,0.2284551,111020.0,111010.0,5.74906295]
[1747972081677,0.2284551,111020.0,111010.0,5.75807114]
[1747972082411,0.2284551,111020.0,111010.0,5.48815114]
[1747972082557,0.2284551,111020.0,111010.0,5.75807114]
[1747972083663,0.2284551,111020.0,111010.0,5.74906295]
[1747972099960,0.2284551,111020.0,111010.0,5.77783905]
[1747972101560,0.2284551,111020.0,111010.0,5.74906295]
[1747972103557,0.2284551,111020.0,111010.0,5.77783905]
[1747972110830,0.2284551,111020.0,111010.0,5.53483405]
[1747972111940,0.2284551,111020.0,111010.0,5.69523008]
[1747972112113,0.2284551,111020.0,111010.0,5.70423811]
[1747972112368,0.2284551,111020.0,111010.0,5.69523008]
[1747972112575,0.2284551,111020.0,111010.0,5.70423819]
[1747972112890,0.2284551,111020.0,111010.0,5.50605795]
[1747972113182,0.21944772,111020.0,111010.0,5.50605795]
[1747972114567,0.21944772,111020.0,111010.0,5.51506606]
[1747972117394,0.21944772,111020.0,111010.0,5.50605795]
[1747972124365,0.21944772,111020.0,111010.0,5.51506606]
[1747972124787,0.04830689,111020.0,111010.0,5.79378343]
[1747972124992,0.22845461,111020.0,111010.0,5.79378343]
[1747972125208,0.23746199,111020.0,111010.0,5.79378343]
[1747972125414,0.24646913,111020.0,111010.0,5.79378343]
[1747972125622,0.24646913,111020.0,111010.0,5.80279122]
[1747972126549,0.24646913,111020.0,111010.0,5.79378343]
[1747972127088,0.24646913,111020.0,111010.0,5.78477556]
[1747972127323,0.23746224,111020.0,111010.0,5.78477556]
[1747972127901,0.23746224,111020.0,111010.0,5.79378359]
[1747972128108,0.23746224,111020.0,111010.0,5.80279146]
[1747972128548,0.23746224,111020.0,111010.0,5.80279154]
[1747972129722,0.2284551,111020.0,111010.0,5.79378359]
[1747972129939,0.2284551,111020.0,111010.0,5.82255969]
[1747972130564,0.21944772,111020.0,111010.0,5.80967166]
[1747972135975,0.21944772,111020.0,111010.0,5.81867969]
[1747972140872,0.21944772,111020.0,111010.0,5.82768764]
[1747972141872,0.0393,111020.0,111010.0,5.86024398]
[1747972142075,0.04830706,111020.0,111010.0,5.86024398]
[1747972142284,0.06632117,111020.0,111010.0,5.88725498]
[1747972143717,0.07532855,111020.0,111010.0,5.88725498]
[1747972144077,0.07532855,111020.0,111010.0,5.26297498]
[1747972144277,0.07532855,111020.0,111010.0,5.88725498]
[1747972144741,0.08433577,111020.0,111010.0,5.88725498]
[1747972145445,0.04702109,111020.0,111010.0,5.88725498]
[1747972145610,0.05602839,111020.0,111010.0,5.88725498]
[1747972146012,0.07612839,111020.0,111010.0,5.88725498]
[1747972147025,0.02900681,111020.0,111010.0,5.88725498]
[1747972147200,0.0201,111030.0,111020.0,0.56170974]
[1747972147399,0.18209905,111050.0,111030.0,0.54715023]
[1747972147400,0.0201,111040.0,111030.0,0.54715023]
[1747972147628,0.0201,111040.0,111030.0,5.41622464]
[1747972147871,0.02910503,111040.0,111030.0,5.44323064]
[1747972148078,0.03110438,111050.0,111040.0,0.20713157]
[1747972148285,0.05811833,111050.0,111040.0,4.43738513]
[1747972148497,0.0221,111050.0,111040.0,4.45192598]
[1747972148698,0.040109,111050.0,111040.0,4.45192598]
[1747972148907,0.04911379,111050.0,111040.0,4.45192598]
[1747972149114,0.05811866,111050.0,111040.0,4.45192598]
[1747972149731,0.05811866,111050.0,111040.0,4.79292598]
[1747972149929,0.05811866,111050.0,111040.0,4.79192598]
[1747972150365,0.07681866,111050.0,111040.0,4.79292598]
[1747972150628,0.07681866,111050.0,111040.0,4.79492598]
[1747972150973,0.08582361,111050.0,111040.0,4.79492598]
[1747972151558,0.08582361,111050.0,111040.0,4.79492614]
[1747972152098,0.08582361,111050.0,111040.0,4.80393141]
[1747972153756,0.08582361,111050.0,111040.0,4.79492614]
[1747972154014,0.002,111050.0,111040.0,4.79492614]
[1747972154220,0.04730341,111060.0,111050.0,0.55263711]
[1747972154449,0.00900341,111060.0,111050.0,5.79537067]
[1747972154648,0.01800698,111060.0,111050.0,5.79537067]
[1747972154855,0.0180069,111060.0,111050.0,5.79537067]
[1747972155268,0.02701047,111060.0,111050.0,5.79537067]
[1747972155469,0.02706143,111060.0,111050.0,5.82237067]
[1747972155714,0.00905437,111060.0,111050.0,5.82237067]
[1747972155892,0.01805794,111060.0,111050.0,5.82237067]
[1747972156134,0.03735794,111060.0,111050.0,5.82237067]
[1747972156337,0.02835437,111060.0,111050.0,5.82237067]
[1747972156749,0.00105096,111060.0,111050.0,5.82237067]
[1747972156919,0.00105096,111060.0,111050.0,5.84027067]
[1747972158078,5.096e-05,111060.0,111050.0,5.87031774]
[1747972158323,0.00905445,111060.0,111050.0,5.85241774]
[1747972158527,0.00905445,111060.0,111050.0,5.85341774]
[1747972159126,0.00905445,111060.0,111050.0,5.85541774]
[1747972161060,0.01805802,111060.0,111050.0,5.55549067]
[1747972161218,0.00905445,111060.0,111050.0,5.82533067]
[1747972161427,0.02825445,111060.0,111050.0,5.82533067]
[1747972162028,0.0372581,111060.0,111050.0,5.82533067]
[1747972162443,0.02825445,111060.0,111050.0,5.82533067]
[1747972162745,0.0180581,111060.0,111050.0,5.82533067]
[1747972162976,5.096e-05,111060.0,111050.0,5.82533067]
[1747972163176,5.096e-05,111060.0,111050.0,5.84453067]
[1747972163388,0.00905453,111060.0,111050.0,5.84453067]
[1747972163593,5.096e-05,111060.0,111050.0,5.84453067]
[1747972163768,0.00905453,111060.0,111050.0,5.82533067]
[1747972163943,5.096e-05,111060.0,111050.0,5.82533067]
[1747972164152,0.00905445,111060.0,111050.0,5.82533067]
[1747972164748,5.096e-05,111060.0,111050.0,5.82533067]
[1747972164952,0.00905445,111060.0,111050.0,5.82533067]
[1747972165329,5.096e-05,111060.0,111050.0,5.82533067]
[1747972165770,0.00905437,111060.0,111050.0,5.82533067]
[1747972166190,5.096e-05,111060.0,111050.0,5.82533067]
[1747972166656,0.00905437,111060.0,111050.0,5.82533067]
[1747972168694,0.02745437,111060.0,111050.0,5.82533067]
[1747972170471,0.01845096,111060.0,111050.0,5.82533067]
[1747972170684,0.02745445,111060.0,111050.0,5.82533067]
[1747972170904,0.01845096,111060.0,111050.0,5.82533067]
[1747972171834,0.02745445,111060.0,111050.0,5.82533067]
[1747972172052,0.02745437,111060.0,111050.0,5.82533067]
[1747972172640,0.01845096,111060.0,111050.0,5.82533067]
[1747972173096,5.096e-05,111060.0,111050.0,5.82533067]
[1747972173929,0.01825096,111060.0,111050.0,5.82533067]
[1747972177168,0.01825096,111060.0,111050.0,5.85410677]
[1747972177169,0.03755096,111060.0,111050.0,5.85410677]
[1747972179138,0.04655445,111060.0,111050.0,5.51410677]
[1747972179535,0.03755096,111060.0,111050.0,5.51410677]
[1747972180159,0.04655445,111060.0,111050.0,5.51410677]
[1747972180571,0.03755096,111060.0,111050.0,5.51410677]
[1747972180893,0.04655445,111060.0,111050.0,5.51410677]
[1747972181094,0.03755096,111060.0,111050.0,5.51410677]
[1747972183466,0.04655437,111060.0,111050.0,5.51410677]
[1747972185580,0.04655437,111060.0,111050.0,5.85410677]
[1747972186158,0.05555786,111060.0,111050.0,5.85410677]
[1747972186611,0.021,111070.0,111050.0,5.85410677]
[1747972186808,0.0386,111080.0,111070.0,0.54707563]
[1747972186983,0.04269835,111080.0,111070.0,4.79187004]
[1747972187191,0.03369656,111080.0,111070.0,5.43427004]
[1747972187504,0.04269843,111080.0,111070.0,5.46126304]
[1747972187907,0.06970508,111080.0,111070.0,5.46126304]
[1747972188108,0.06070265,111080.0,111070.0,5.46126304]
[1747972188343,0.04269843,111080.0,111070.0,5.46126304]
[1747972188543,0.05170046,111080.0,111070.0,5.46126304]
[1747972188748,0.03369656,111080.0,111070.0,5.46126304]
[1747972190488,0.04269835,111080.0,111070.0,5.46126304]
[1747972190622,0.03369656,111080.0,111070.0,5.46126304]
[1747972194687,0.04269835,111080.0,111070.0,5.46126304]
[1747972194892,0.03369656,111080.0,111070.0,5.46126304]
[1747972195320,0.04269835,111080.0,111070.0,5.46126304]
[1747972195540,0.03369656,111080.0,111070.0,5.46126304]
[1747972195776,0.04269851,111080.0,111070.0,5.19146304]
[1747972196012,0.03369656,111080.0,111070.0,5.46126304]
[1747972197047,0.04269835,111080.0,111070.0,5.46126304]
[1747972197660,0.04269835,111080.0,111070.0,5.49003914]
[1747972198778,0.06070233,111080.0,111070.0,5.47549829]
[1747972198986,0.07870687,111080.0,111070.0,5.47549829]
[1747972199768,0.06970508,111080.0,111070.0,5.47541845]
[1747972200132,0.07870808,111080.0,111070.0,5.22992825]
[1747972200481,0.06970605,111080.0,111070.0,5.42800112]
[1747972200994,0.24975646,111080.0,111070.0,5.40099236]
[1747972201215,0.24975646,111080.0,111070.0,5.38121934]
[1747972201611,0.24075427,111080.0,111070.0,4.54082639]
[1747972201863,0.29490282,111080.0,111070.0,2.054]
[1747972202095,0.29490282,111080.0,111070.0,0.7912]
[1747972202335,0.29490282,111080.0,111070.0,0.8358]
[1747972202543,0.29490282,111080.0,111070.0,1.47812]
[1747972203001,0.29490282,111080.0,111070.0,1.49247456]
[1747972203246,0.22274949,111080.0,111070.0,1.49247456]
[1747972208210,0.22274949,111080.0,111070.0,1.50147789]
[1747972208413,0.21374697,111080.0,111070.0,1.49247456]
[1747972210403,0.21374697,111080.0,111070.0,1.50147789]
[1747972210729,0.21374697,111080.0,111070.0,1.49247456]
[1747972210941,0.2859003,111080.0,111070.0,0.85015456]
[1747972211186,0.2859003,111080.0,111070.0,1.50871456]
[1747972211979,0.2859003,111080.0,111070.0,1.49436]
[1747972212743,0.21374697,111080.0,111070.0,1.49436]
[1747972213831,0.03369656,111080.0,111070.0,1.49436]
[1747972214029,0.19108705,111090.0,111080.0,0.34900243]
[1747972214255,0.19108705,111090.0,111080.0,4.67876336]
[1747972214682,0.19108705,111090.0,111080.0,4.66976093]
[1747972214894,0.18208551,111090.0,111080.0,4.480708]
[1747972215324,0.18308551,111090.0,111080.0,4.480708]
[1747972215527,0.18308551,111090.0,111080.0,4.49506459]
[1747972216513,0.18508551,111090.0,111080.0,4.49506459]
[1747972217255,0.22228551,111090.0,111080.0,4.49506459]
[1747972217588,0.22228551,111090.0,111080.0,4.88354459]
[1747972218899,0.06025383,111090.0,111080.0,5.09060157]
[1747972219122,0.06925489,111090.0,111080.0,5.09060173]
[1747972219335,0.2582908,111090.0,111080.0,5.08159962]
[1747972219550,0.24928974,111090.0,111080.0,5.08159962]
[1747972219778,0.24928974,111090.0,111080.0,5.07259743]
[1747972220001,0.24028844,111090.0,111080.0,5.0815997]
[1747972220432,0.24028844,111090.0,111080.0,5.06724311]
[1747972221257,0.24028844,111090.0,111080.0,5.05824084]
[1747972221674,0.24028844,111090.0,111080.0,5.06724319]
[1747972222087,0.06025335,111090.0,111080.0,5.07624538]
[1747972222324,0.08725814,111090.0,111080.0,5.09424952]
[1747972222803,0.06925578,111090.0,111080.0,5.07624538]
[1747972223933,0.06925578,111090.0,111080.0,5.08524765]
[1747972224375,0.06925578,111090.0,111080.0,5.35500765]
[1747972225733,0.06025407,111090.0,111080.0,5.35500765]
[1747972226639,0.3124416,111090.0,111080.0,4.869188]
[1747972226854,0.3124416,111090.0,111080.0,5.565868]
[1747972227500,0.3124416,111090.0,111080.0,5.57487052]
[1747972229114,0.24028827,111090.0,111080.0,5.58387295]
[1747972229345,0.24028827,111090.0,111080.0,5.57487052]
[1747972230337,0.24028827,111090.0,111080.0,5.58387295]
[1747972230544,0.23128681,111090.0,111080.0,5.565868]
[1747972231038,0.23128681,111090.0,111080.0,5.57487052]
[1747972232027,0.23128681,111090.0,111080.0,5.58387295]
[1747972233976,0.23128681,111090.0,111080.0,5.565868]
[1747972234713,0.23128681,111090.0,111080.0,5.296108]
[1747972234938,0.22228519,111090.0,111080.0,4.43816]
[1747972235151,0.22228519,111090.0,111080.0,1.4355]
[1747972235345,0.22228519,111090.0,111080.0,1.69136]
[1747972237732,0.22200519,111090.0,111080.0,1.69136]
[1747972244181,0.22200519,111090.0,111080.0,1.70036252]
[1747972244946,0.22200519,111090.0,111080.0,1.00368252]
[1747972245135,0.22200519,111090.0,111080.0,1.70036252]
[1747972245543,0.22200519,111090.0,111080.0,1.69136]
[1747972249390,0.01377229,111090.0,111080.0,1.89841698]
[1747972249629,0.01377205,111090.0,111080.0,1.98796254]
[1747972249859,0.04077627,111090.0,111080.0,2.00786254]
[1747972250104,0.04977789,111090.0,111080.0,1.98796254]
[1747972251248,0.03177473,111090.0,111080.0,2.00786254]
[1747972251710,0.04077627,111090.0,111080.0,2.00786254]
[1747972252363,0.02277327,111090.0,111080.0,2.00786254]
[1747972252576,0.01377205,111090.0,111080.0,2.00786254]
[1747972252792,0.03177473,111090.0,111080.0,2.00786254]
[1747972253452,0.03177465,111090.0,111080.0,2.00786254]
[1747972253658,0.04077619,111090.0,111080.0,2.00786254]
[1747972253827,0.03177465,111090.0,111080.0,2.00786254]
[1747972254046,0.04077611,111090.0,111080.0,2.00786254]
[1747972254253,0.04977765,111090.0,111080.0,2.00786254]
[1747972255752,0.01377205,111090.0,111080.0,2.00786254]
[1747972256021,0.03177473,111090.0,111080.0,2.00786254]
[1747972257386,0.04077627,111090.0,111080.0,2.00786254]
[1747972258601,0.03177473,111090.0,111080.0,2.00786254]
[1747972259014,0.04077619,111090.0,111080.0,2.00786254]
[1747972260705,0.03177449,111090.0,111080.0,2.00786254]
[1747972261748,0.04077603,111090.0,111080.0,2.00786254]
[1747972261921,0.04077595,111090.0,111080.0,2.00786254]
[1747972262745,0.03177449,111090.0,111080.0,2.03663864]
[1747972263631,0.03177449,111090.0,111080.0,2.00786254]
[1747972264098,0.02277311,111090.0,111080.0,2.00786254]
[1747972264385,0.04077571,111090.0,111080.0,2.00786254]
[1747972265008,0.04977725,111090.0,111080.0,2.00786254]
[1747972265211,0.04977717,111090.0,111080.0,2.00786254]
[1747972265422,0.04077571,111090.0,111080.0,2.00786254]
[1747972265845,0.04977725,111090.0,111080.0,2.00786254]
[1747972266056,0.04077571,111090.0,111080.0,2.00786254]
[1747972266868,0.04977717,111090.0,111080.0,2.00786254]
[1747972268334,0.04977717,111090.0,111080.0,1.98796254]
[1747972268536,0.02277335,111090.0,111080.0,1.98796254]
[1747972268738,0.03177481,111090.0,111080.0,1.98796254]
[1747972269448,0.04077635,111090.0,111080.0,1.98796254]
[1747972269652,0.04977806,111090.0,111080.0,1.99696473]
[1747972270455,0.04977806,111090.0,111080.0,2.02574083]
[1747972270659,0.04077635,111090.0,111080.0,2.03474278]
[1747972270861,0.04977797,111090.0,111080.0,2.03474278]
[1747972271072,0.04977854,111090.0,111080.0,2.03474278]
[1747972271274,0.06027732,111090.0,111080.0,1.75598083]
[1747972271480,0.06027732,111090.0,111080.0,2.02574083]
[1747972272371,0.31456185,111090.0,111080.0,1.51114556]
[1747972272580,0.31456185,111090.0,111080.0,1.78090556]
[1747972273225,0.31456185,111090.0,111080.0,1.69136]
[1747972273435,0.31456185,111090.0,111080.0,1.4216]
[1747972273618,0.31456185,111090.0,111080.0,1.69136]
[1747972275110,0.31456185,111090.0,111080.0,1.70573225]
[1747972277526,0.31456185,111090.0,111080.0,0.66905225]
[1747972277721,0.40410741,111090.0,111080.0,0.01437225]
[1747972277922,0.40410741,111090.0,111080.0,0.28413225]
[1747972278930,0.40410741,111090.0,111080.0,0.01437225]
[1747972279155,0.22755276,111080.0,111070.0,0.42]
[1747972279356,0.31709832,111080.0,111070.0,0.42]
[1747972279607,0.31709832,111080.0,111070.0,0.68976]
[1747972280916,0.31809832,111080.0,111070.0,0.68976]
[1747972281122,0.32009832,111080.0,111070.0,0.68976]
[1747972282104,0.32009832,111080.0,111050.0,0.72844]
[1747972282105,0.23629053,111060.0,111050.0,0.72844]
[1747972282331,0.23629053,111060.0,111050.0,1.42184]
[1747972283496,0.23629053,111060.0,111050.0,1.42384]
[1747972284682,0.23629053,111060.0,111050.0,0.39044]
[1747972284897,0.32583609,111060.0,111050.0,1.08392]
[1747972285112,0.32583609,111060.0,111050.0,0.27184]
[1747972285713,0.32583609,111060.0,111050.0,0.27084]
[1747972285986,0.32583609,111060.0,111050.0,0.26984]
[1747972286202,0.32883609,111060.0,111050.0,0.26984]
[1747972286658,0.22670384,111050.0,111040.0,0.002]
[1747972286918,0.3162494,111050.0,111040.0,0.27184]
[1747972288039,0.3162494,111050.0,111040.0,0.27189096]
[1747972288915,0.3172494,111050.0,111040.0,0.27189096]
[1747972289117,0.3172494,111050.0,111040.0,0.00205096]
[1747972289393,0.22870384,111050.0,111040.0,0.27189096]
[1747972292086,0.22870384,111050.0,111040.0,0.00205096]
[1747972292286,0.22870384,111050.0,111040.0,0.69565096]
[1747972292923,0.22870384,111050.0,111040.0,5.17635896]
[1747972293128,0.20960384,111050.0,111040.0,5.17635896]
[1747972293953,0.22900384,111050.0,111040.0,4.90647896]
[1747972294157,0.22900384,111050.0,111040.0,5.17635896]
[1747972295462,0.22900384,111050.0,111040.0,0.60363875]
[1747972295692,0.22900384,111050.0,111040.0,0.89554]
[1747972299672,0.56900384,111050.0,111040.0,0.89554]
[1747972301833,0.56900384,111050.0,111040.0,0.89558]
[1747972303386,0.56900384,111050.0,111040.0,1.86338]
[1747972303593,0.56900384,111050.0,111040.0,0.82788]
[1747972307230,0.56800384,111050.0,111040.0,0.82788]
[1747972307432,0.22800384,111050.0,111040.0,0.82788]
[1747972307632,0.22900384,111050.0,111040.0,0.82788]
[1747972308093,0.23100384,111050.0,111040.0,0.82788]
[1747972315276,0.3205494,111050.0,111040.0,0.82788]
[1747972329712,0.19310384,111050.0,111040.0,0.84588]
[1747972332129,0.19310384,111050.0,111040.0,0.1522]
[1747972332329,0.19310384,111050.0,111040.0,0.83368]
[1747972332572,0.19310384,111050.0,111040.0,0.84804749]
[1747972336522,0.21260384,111050.0,111040.0,0.84804749]
[1747972337334,0.21260384,111050.0,111040.0,0.83004749]
[1747972338326,0.21260384,111050.0,111040.0,0.84854749]
[1747972340073,0.19310384,111050.0,111040.0,1.18854749]
[1747972343638,0.21160384,111050.0,111040.0,1.18854749]
[1747972345439,0.21160384,111050.0,111040.0,1.17004749]
[1747972346295,0.21160384,111050.0,111040.0,1.15768749]
[1747972350466,0.19310384,111050.0,111040.0,1.17558749]
[1747972350667,0.19310384,111050.0,111040.0,1.19488749]
[1747972351006,0.19310384,111050.0,111040.0,1.17558749]
[1747972352883,0.19310384,111050.0,111040.0,0.50646749]
[1747972353083,0.19310384,111050.0,111040.0,1.17558749]
[1747972354573,0.21150384,111050.0,111040.0,1.15768749]
[1747972355689,0.21150384,111050.0,111040.0,1.17578749]
[1747972357629,0.19310384,111050.0,111040.0,1.17578749]
[1747972358669,0.21230384,111050.0,111040.0,1.15768749]
[1747972358881,0.21230384,111050.0,111040.0,1.17558749]
[1747972359328,0.19310384,111050.0,111040.0,1.17558749]
[1747972359548,0.21220384,111050.0,111040.0,1.15768749]
[1747972359963,0.21220384,111050.0,111040.0,1.17558749]
[1747972360825,0.19310384,111050.0,111040.0,1.17558749]
[1747972361824,0.21120384,111050.0,111040.0,1.17558749]
[1747972362041,0.21120384,111050.0,111040.0,1.15768749]
[1747972363506,0.21120384,111050.0,111040.0,1.14332]
[1747972373062,0.21120384,111050.0,111040.0,1.14328]
[1747972373280,0.21120384,111050.0,111040.0,0.8734]
[1747972373491,0.22960384,111050.0,111040.0,0.4742]
[1747972373713,0.22960384,111050.0,111040.0,0.5246]
[1747972373931,0.22960384,111050.0,111040.0,0.66028]
[1747972376105,0.22960384,111050.0,111040.0,0.67106588]
[1747972378145,0.22960384,111050.0,111040.0,0.66028]
[1747972382784,0.1891379,111030.0,111020.0,0.15571311]
[1747972382987,0.1891379,111030.0,111020.0,4.56448917]
[1747972383930,0.1891379,111030.0,111020.0,4.83540917]
[1747972384142,0.1891379,111030.0,111020.0,4.821028]
[1747972384349,0.1891379,111030.0,111020.0,4.822028]
[1747972385315,0.1891379,111030.0,111020.0,5.210668]
[1747972394531,0.1891379,111030.0,111020.0,5.22504917]
[1747972395864,0.2059379,111030.0,111020.0,5.22504917]
[1747972400075,0.2059379,111030.0,111020.0,5.56504917]
[1747972401171,0.2059379,111030.0,111020.0,5.550668]
[1747972405149,0.2059379,111030.0,111020.0,5.531668]
[1747972406725,0.2059379,111030.0,111020.0,5.548068]
[1747972410671,0.1891379,111030.0,111020.0,5.548068]
[1747972412573,0.2056379,111030.0,111020.0,5.548068]
[1747972415609,0.19651527,111040.0,111020.0,5.84478245]
[1747972415819,0.19875192,111050.0,111030.0,4.78509795]
[1747972415820,0.19865192,111050.0,111030.0,4.78509795]
[1747972416027,0.18011527,111040.0,111030.0,0.65878463]
[1747972416281,0.18011527,111040.0,111030.0,5.06941263]
[1747972416489,0.18011527,111040.0,111030.0,5.08742537]